bitfinex/quotes_ETHUSD_20241024
["timestamp","ask_amount","ask_price","bid_price","bid_amount"]
[1729759184472,3.93662,2540.3,2539.8,3.93722]
[1729759184687,3.9368,2540.2,2539.9,0.16465026]
[1729759184883,3.9368,2540.2,2539.7,3.93746]
[1729759185239,3.93662,2540.3,2539.8,0.16471558]
[1729759185481,3.93702,2540.0,2539.8,0.16471558]
[1729759185986,3.93702,2540.0,2539.9,0.16465026]
[1729759186354,3.93702,2540.0,2539.5,5.4515526]
[1729759186677,3.93702,2540.0,2539.9,0.16465026]
[1729759186879,3.93702,2540.0,2539.5,5.4515526]
[1729759187042,3.93702,2540.0,2539.9,0.16465026]
[1729759187244,3.93702,2540.0,2539.5,5.4515526]
[1729759187451,3.93702,2540.0,2539.5,1.5138026]
[1729759187640,3.93641,2540.4,2539.6,0.16484623]
[1729759187641,3.93719,2539.9,2539.6,0.16484623]
[1729759187836,3.93742,2539.8,2539.6,0.16484623]
[1729759188244,3.93719,2539.9,2539.6,0.16484623]
[1729759188245,3.93747,2539.7,2539.6,0.16484623]
[1729759189441,3.93732,2539.8,2539.6,0.16484623]
[1729759190079,3.93719,2539.9,2539.6,0.16484623]
[1729759191279,3.93701,2540.0,2539.6,0.16484623]
[1729759192269,3.93697,2540.1,2539.6,0.16484623]
[1729759192495,7.87394,2540.1,2539.6,0.16484623]
[1729759192667,3.93697,2540.1,2539.6,0.16484623]
[1729759192851,3.93697,2540.1,2539.7,3.93745]
[1729759193047,3.93702,2540.0,2539.6,0.16484623]
[1729759193253,3.93702,2540.0,2539.8,0.16504767]
[1729759193453,3.93702,2540.0,2539.7,0.16511299]
[1729759193687,3.93702,2540.0,2539.9,0.16498235]
[1729759193882,3.93716,2539.9,2539.8,0.16526697]
[1729759194188,3.93716,2539.9,2539.5,1.5138026]
[1729759194355,3.93702,2540.0,2539.5,1.5138026]
[1729759194356,3.93735,2539.8,2539.5,1.5138026]
[1729759195088,3.93755,2539.7,2539.5,1.5138026]
[1729759195758,3.93722,2539.9,2539.5,1.5138026]
[1729759195965,7.87451,2539.9,2539.5,1.5138026]
[1729759196171,3.93722,2539.9,2539.5,1.5138026]
[1729759196664,3.93732,2539.8,2539.5,1.5138026]
[1729759196891,3.93732,2539.8,2539.5,1.7600902]
[1729759197391,3.93732,2539.8,2539.5,1.5138026]
[1729759197595,3.93732,2539.8,2539.5,1.7600902]
[1729759197976,3.93732,2539.8,2539.5,1.5138026]
[1729759198182,3.93732,2539.8,2539.5,1.76009129]
[1729759198557,3.93732,2539.8,2539.5,1.5138026]
[1729759198759,3.93732,2539.8,2539.5,1.76009129]
[1729759198993,3.93732,2539.8,2539.5,1.5138026]
[1729759199195,3.93732,2539.8,2539.5,1.76009129]
[1729759199364,3.93732,2539.8,2539.5,1.5138026]
[1729759200056,3.93732,2539.8,2539.5,1.76009372]
[1729759200256,3.93722,2539.9,2539.5,1.5138026]
[1729759200461,7.87452,2539.9,2539.5,1.5138026]
[1729759201500,7.87448,2539.9,2539.5,1.5138026]
[1729759202687,3.93693,2540.1,2539.5,1.5138026]
[1729759202902,3.93693,2540.1,2539.6,0.24628575]
[1729759203102,3.93693,2540.1,2539.6,3.93761]
[1729759203395,3.93679,2540.2,2539.7,0.41171321]
[1729759203769,3.93679,2540.2,2539.7,0.16543257]
[1729759204404,3.93688,2540.1,2539.7,0.16543257]
[1729759204767,7.87348,2540.2,2539.7,0.16543257]
[1729759204966,0.01,2541.0,2540.0,3.937]
[1729759205274,0.01,2541.0,2539.8,4.4872]
[1729759205275,3.9364,2540.4,2540.1,0.24625234]
[1729759205603,3.93626,2540.5,2540.1,0.16524027]
[1729759205905,3.93603,2540.7,2540.2,0.16517497]
[1729759206199,3.93563,2540.9,2540.4,3.93631]
[1729759206400,3.93577,2540.8,2540.5,0.24620112]
[1729759206598,3.93577,2540.8,2540.5,0.16489761]
[1729759206804,3.93577,2540.8,2540.3,3.93654]
[1729759207007,3.93577,2540.8,2540.6,0.16483232]
[1729759207166,3.93577,2540.8,2540.4,0.24620103]
[1729759207363,3.93563,2540.9,2540.7,0.16476705]
[1729759207567,3.93563,2540.9,2540.3,7.87296]
[1729759207766,3.93588,2540.8,2540.4,0.24619488]
[1729759207996,3.93588,2540.8,2540.3,3.93642]
[1729759207997,3.93588,2540.8,2540.5,0.24619488]
[1729759208196,3.93588,2540.8,2540.3,3.93642]
[1729759208403,3.93588,2540.8,2540.4,0.24620133]
[1729759208574,3.93563,2540.9,2540.4,3.93638]
[1729759208781,3.93563,2540.9,2540.5,0.24619386]
[1729759208979,3.93563,2540.9,2540.4,3.93638]
[1729759209203,7.87139,2540.9,2540.5,0.24619659]
[1729759209505,3.93577,2540.8,2540.4,0.24619705]
[1729759209706,3.93577,2540.8,2540.3,3.93642]
[1729759209909,3.93577,2540.8,2540.4,0.24620365]
[1729759210110,3.93577,2540.8,2540.3,3.93642]
[1729759210675,3.93577,2540.8,2540.3,7.87288]
[1729759210875,3.93554,2541.0,2540.5,3.93622]
[1729759211104,3.9353,2541.1,2540.5,3.93622]
[1729759211410,6.8356788,2541.2,2540.7,3.93591]
[1729759211609,3.93516,2541.2,2540.7,3.93591]
[1729759212409,3.9353,2541.1,2540.6,0.55]
[1729759212774,3.9353,2541.1,2540.6,4.48596]
[1729759213410,3.9353,2541.1,2540.6,0.55]
[1729759214606,3.9353,2541.1,2540.6,4.48606]
[1729759215310,7.87069,2541.1,2540.6,4.48606]
[1729759215909,3.9353,2541.1,2540.6,4.48606]
[1729759216711,3.9353,2541.1,2540.6,4.48598]
[1729759217710,3.93501,2541.3,2540.7,3.93583]
[1729759217888,3.93515,2541.2,2540.7,3.93583]
[1729759218701,3.93501,2541.3,2540.8,0.16391407]
[1729759218907,7.87013,2541.3,2540.8,0.16391407]
[1729759219210,3.93501,2541.3,2540.9,0.16384881]
[1729759219372,3.93533,2541.1,2540.6,4.48598]
[1729759219577,3.93533,2541.1,2541.0,0.16378354]
[1729759219779,3.93533,2541.1,2540.6,4.48598]
[1729759220102,3.93533,2541.1,2541.0,0.16378354]
[1729759220277,5.23432896,2541.1,2540.6,4.48598]
[1729759220478,1.29899896,2540.9,2540.6,4.48598]
[1729759223528,1.29899896,2540.9,2540.6,8.42197]
[1729759223697,1.29899896,2540.9,2540.6,4.48598]
[1729759223904,0.7862,2540.8,2540.6,4.48598]
[1729759225315,0.7862,2540.8,2540.6,8.42196]
[1729759225528,0.7759,2541.2,2540.6,4.48598]
[1729759225732,0.7759,2541.2,2540.8,3.93576]
[1729759225892,0.7759,2541.6,2541.2,3.935]
[1729759226095,1.29899896,2541.5,2541.2,3.935]
[1729759226336,0.7759,2541.6,2541.2,3.935]
[1729759227133,0.7759,2541.6,2541.2,7.87006]
[1729759227362,0.7759,2541.6,2541.2,3.935]
[1729759228705,0.7759,2541.6,2541.3,3.93499]
[1729759228924,0.7759,2541.6,2541.4,3.93482]
[1729759229507,0.7759,2541.5,2541.1,3.9352]
[1729759230015,0.7759,2541.5,2541.1,7.87042]
[1729759230214,0.7759,2541.4,2541.0,3.93541]
[1729759230401,0.7759,2541.4,2541.2,3.93512]
[1729759231107,0.7759,2541.6,2541.4,3.93482]
[1729759231936,0.7759,2541.6,2541.2,3.93505]
[1729759231937,0.7759,2541.6,2541.5,3.93468]
[1729759232139,0.7759,2541.6,2541.4,3.93483]
[1729759232741,0.7759,2541.6,2541.4,3.43483]
[1729759233643,0.7759,2541.6,2541.5,0.19915645]
[1729759234141,0.7759,2541.6,2541.2,7.8701]
[1729759234346,0.7759,2541.6,2541.5,0.19915645]
[1729759234510,0.7759,2541.6,2541.2,3.93503]
[1729759234855,0.7759,2541.6,2541.3,0.19929022]
[1729759235048,0.7759,2541.6,2541.2,3.93503]
[1729759235214,0.7759,2541.6,2541.4,0.19922333]
[1729759235540,0.7759,2541.6,2541.2,7.87009]
[1729759235845,0.7759,2542.0,2541.4,3.93482]
[1729759236012,0.7759,2542.0,2541.5,4.4846]
[1729759236214,0.7759,2541.9,2541.5,4.68308135]
[1729759237420,0.7759,2541.9,2541.5,0.74841135]
[1729759237626,0.7759,2541.9,2541.7,3.93434]
[1729759237828,3.93355,2542.3,2541.8,3.93421]
[1729759237829,0.7759,2542.3,2541.8,3.93421]
[1729759238164,4.70936,2542.3,2541.9,3.93405]
[1729759238314,4.70936,2542.3,2541.8,0.19821073]
[1729759238517,0.7759,2542.2,2542.0,0.19807701]
[1729759238740,0.7759,2542.2,2541.9,0.19814387]
[1729759238928,0.7759,2542.2,2542.1,0.19801016]
[1729759239128,0.7759,2542.2,2542.0,0.19807701]
[1729759239342,0.7759,2542.2,2542.1,0.19801016]
[1729759239613,0.7759,2542.2,2541.8,3.93406]
[1729759239811,0.7759,2542.2,2542.1,0.19801016]
[1729759240055,0.7784,2542.4,2542.0,0.55]
[1729759240257,0.7784,2542.4,2542.1,0.19801016]
[1729759240454,0.7784,2542.4,2542.1,4.13176016]
[1729759243004,0.7784,2542.4,2542.1,0.19801016]
[1729759243729,0.7784,2542.2,2542.1,0.19801016]
[1729759243894,7.61306702,2542.2,2542.1,0.19801016]
[1729759244433,7.61306702,2542.2,2541.7,3.93435]
[1729759244582,7.61306702,2542.2,2542.1,0.19801016]
[1729759244784,7.61306702,2542.2,2541.7,3.93435]
[1729759245131,7.61306702,2542.2,2542.1,0.19801016]
[1729759245293,7.61306702,2542.2,2541.7,3.93435]
[1729759245485,7.61306702,2542.2,2542.1,0.19801016]
[1729759245679,7.61306702,2542.2,2541.7,3.93435]
[1729759245901,7.61306702,2542.2,2542.1,0.19801016]
[1729759246080,7.61306702,2542.2,2541.7,3.93435]
[1729759246303,7.61306702,2542.2,2542.1,0.19801016]
[1729759246528,4.712,2542.2,2541.7,3.93435]
[1729759246684,4.712,2542.2,2542.1,0.19801016]
[1729759246884,4.712,2542.2,2541.7,3.93435]
[1729759247382,4.712,2542.2,2541.8,0.19821073]
[1729759247589,4.712,2542.2,2541.7,3.93435]
[1729759247793,3.93376,2542.1,2541.9,0.19814387]
[1729759247993,4.71237,2542.0,2541.5,3.93457]
[1729759248291,0.7784,2542.0,2541.6,0.74]
[1729759248627,0.7784,2542.0,2541.7,0.1982776]
[1729759253034,0.7784,2542.0,2541.7,4.1325676]
[1729759256168,0.7784,2542.0,2541.8,3.93411]
[1729759256463,0.8076,2542.2,2541.9,0.19788097]
[1729759257167,0.8076,2542.4,2542.0,4.4839]
[1729759257369,0.8076,2542.4,2542.0,4.4838]
[1729759257575,0.8076,2542.4,2542.1,0.19774726]
[1729759259637,4.74089,2542.4,2542.1,0.19774726]
[1729759260548,0.8076,2542.4,2542.1,0.19774726]
[1729759260950,4.74091,2542.4,2542.1,0.19774726]
[1729759262250,1.29765315,2542.3,2542.1,0.19774726]
[1729759262447,1.29765315,2542.2,2542.1,0.19774726]
[1729759263287,5.23125315,2542.2,2542.1,0.19774726]
[1729759263512,3.93375,2542.1,2541.6,4.75273]
[1729759263800,5.23140315,2542.1,2541.6,4.75273]
[1729759264361,1.29765315,2542.1,2541.6,4.75273]
[1729759264591,1.29765315,2542.1,2541.7,0.55]
[1729759264972,2.10525315,2542.2,2541.7,4.48434]
[1729759265163,1.29765315,2542.1,2541.7,0.55]
[1729759265568,2.10525315,2542.2,2541.7,0.55]
[1729759265769,2.10525315,2542.2,2541.7,4.48423]
[1729759265984,0.8076,2542.7,2542.0,4.48378]
[1729759266186,1.29765315,2542.4,2542.0,8.41758]
[1729759266398,1.29765315,2542.4,2542.0,4.48378]
[1729759266607,1.29765315,2542.4,2542.1,3.93374]
[1729759267381,1.29765315,2542.4,2542.0,4.48378]
[1729759267579,1.29765315,2542.3,2542.0,0.55]
[1729759267782,1.29765315,2542.2,2541.9,4.48406]
[1729759269839,1.29765315,2542.3,2542.1,3.93375]
[1729759270177,1.29765315,2542.3,2542.0,3.93389]
[1729759270516,1.29765315,2542.2,2542.0,3.93389]
[1729759271350,2.11265315,2542.1,2541.8,3.93411]
[1729759271623,0.815,2541.8,2541.4,3.93476]
[1729759271806,2.11265315,2541.8,2541.6,3.93452]
[1729759272121,1.29765315,2541.7,2541.6,3.93452]
[1729759272627,1.29765315,2541.7,2541.4,3.93469]
[1729759272817,1.29765315,2541.7,2541.5,3.93464]
[1729759273115,2.11265315,2541.8,2541.5,3.93464]
[1729759273278,2.11265315,2541.8,2541.6,3.93451]
[1729759273676,1.29765315,2541.7,2541.6,3.93451]
[1729759274127,2.11265315,2541.8,2541.6,3.93451]
[1729759274337,0.815,2541.8,2541.6,3.93451]
[1729759274517,0.815,2541.8,2541.7,3.93437]
[1729759274716,0.815,2541.8,2541.6,7.86902]
[1729759274911,0.815,2541.8,2541.6,3.93451]
[1729759275727,0.815,2541.8,2541.6,3.93445]
[1729759276030,0.815,2541.8,2541.6,7.86889]
[1729759276531,0.815,2541.8,2541.6,3.93444]
[1729759276692,0.815,2541.8,2541.6,7.86889]
[1729759277191,0.815,2541.8,2541.6,3.93444]
[1729759278616,0.815,2541.8,2541.7,0.19758288]
[1729759279015,0.815,2541.8,2541.4,7.8695]
[1729759279323,0.815,2541.8,2541.7,0.19758288]
[1729759279791,0.815,2541.8,2541.4,3.93474]
[1729759279988,0.815,2541.8,2541.5,0.19771663]
[1729759280425,4.74923,2541.8,2541.5,0.19771663]
[1729759280630,0.815,2541.6,2541.2,3.93504]
[1729759280835,0.815,2541.5,2541.1,3.93528]
[1729759281414,3.93484,2541.4,2540.8,3.9357]
[1729759281596,0.815,2541.2,2540.8,3.9357]
[1729759281797,0.815,2541.1,2540.6,3.93596]
[1729759281998,0.815,2540.9,2540.6,3.93598]
[1729759282835,0.815,2540.9,2540.7,3.9359]
[1729759283206,0.815,2540.9,2540.4,4.18244821]
[1729759283407,0.815,2540.9,2540.5,3.93623]
[1729759284542,0.815,2540.9,2540.3,0.24618158]
[1729759284916,0.815,2540.9,2540.3,0.55]
[1729759286120,3.93547,2541.0,2540.2,0.49238578]
[1729759286443,3.93577,2540.8,2540.2,0.49238578]
[1729759287109,0.815,2540.9,2540.2,0.49238578]
[1729759287311,4.75062,2540.9,2540.2,0.49238578]
[1729759287711,3.93577,2540.8,2540.2,0.49238578]
[1729759287907,0.815,2540.7,2540.2,0.49238578]
[1729759288648,4.751,2540.7,2540.2,0.49238578]
[1729759291417,8.687,2540.7,2540.2,0.49238578]
[1729759291608,4.751,2540.7,2540.2,0.49238578]
[1729759292047,8.68702,2540.7,2540.2,0.49238578]
[1729759292742,8.68704,2540.7,2540.2,0.49238578]
[1729759292912,4.751,2540.7,2540.2,0.49238578]
[1729759293109,3.93609,2540.6,2540.2,0.49238578]
[1729759293634,3.93609,2540.6,2540.3,0.19311842]
[1729759293835,3.93609,2540.6,2540.2,0.49238578]
[1729759294036,3.93609,2540.6,2540.4,0.19305148]
[1729759294237,3.93609,2540.6,2540.2,0.49238578]
[1729759294438,3.93609,2540.6,2540.5,0.19298454]
[1729759294625,3.93609,2540.6,2540.2,0.49238578]
[1729759294827,3.93609,2540.6,2540.5,0.19298454]
[1729759295058,3.93609,2540.6,2540.2,0.49238578]
[1729759295364,3.93609,2540.6,2540.5,0.19298454]
[1729759295512,3.93609,2540.6,2540.2,0.49238578]
[1729759295712,3.93609,2540.6,2540.5,0.19322251]
[1729759296225,3.93609,2540.6,2540.1,0.55]
[1729759296450,3.93609,2540.6,2540.5,0.19322251]
[1729759296632,3.93609,2540.6,2540.1,1.84918952]
[1729759296964,3.93609,2540.6,2540.5,0.19322251]
[1729759297163,3.93627,2540.5,2540.1,1.84918952]
[1729759297760,3.9364,2540.4,2540.1,0.55]
[1729759297956,3.93627,2540.5,2540.1,0.55]
[1729759299954,7.8726,2540.5,2540.1,0.55]
[1729759300469,7.87262,2540.5,2540.1,0.55]
[1729759300845,3.93641,2540.4,2540.1,0.55]
[1729759301569,5.23596952,2540.2,2539.9,0.7528]
[1729759301868,3.93678,2540.2,2539.7,5.98874952]
[1729759302236,3.93678,2540.2,2539.8,3.9373]
[1729759302636,3.93678,2540.2,2539.7,2.05128952]
[1729759302834,3.93678,2540.2,2539.8,0.55]
[1729759303943,3.93687,2540.1,2539.8,0.55]
[1729759304136,3.93678,2540.2,2539.8,0.55]
[1729759304346,7.87357,2540.2,2539.8,0.55]
[1729759304578,3.93678,2540.2,2539.8,0.55]
[1729759308087,7.87358,2540.2,2539.8,0.55]
[1729759308381,3.93687,2540.1,2539.8,0.55]
[1729759308737,3.93687,2540.1,2539.9,0.19264914]
[1729759312557,3.93687,2540.1,2540.0,0.24625969]
[1729759312957,3.93687,2540.1,2540.0,0.43884185]
[1729759313165,3.93687,2540.1,2540.0,0.19258218]
[1729759313367,3.93687,2540.1,2540.0,0.43884461]
[1729759313567,3.93687,2540.1,2539.8,0.79625983]
[1729759313877,3.937,2540.0,2539.9,0.43891406]
[1729759314081,6.06808952,2540.0,2539.9,0.19264914]
[1729759315399,6.06808952,2540.0,2539.8,0.24625983]
[1729759315400,3.93716,2539.9,2539.8,0.24625983]
[1729759315604,5.23634952,2539.9,2539.8,0.24625983]
[1729759315906,3.93716,2539.9,2539.8,0.43918664]
[1729759316198,5.23634952,2539.9,2539.8,0.43918664]
[1729759316403,5.23634952,2539.9,2539.8,0.19292681]
[1729759316762,3.93756,2539.7,2539.5,1.5138026]
[1729759316960,3.93756,2539.7,2539.6,0.24629535]
[1729759317195,3.93756,2539.7,2539.6,0.43935611]
[1729759317569,4.76946,2539.7,2539.6,0.43935611]
[1729759319299,4.76946,2539.7,2539.6,0.19306076]
[1729759320267,0.8319,2539.7,2539.6,0.19306076]
[1729759320475,3.93728,2539.9,2539.6,0.43935303]
[1729759320693,3.93731,2539.8,2539.6,0.19306076]
[1729759321570,3.93728,2539.9,2539.6,0.19306076]
[1729759321774,3.93727,2539.9,2539.6,0.19306076]
[1729759321973,5.23663952,2539.8,2539.6,0.19306076]
[1729759322408,9.17410952,2539.8,2539.6,0.19306076]
[1729759322575,3.93747,2539.7,2539.6,0.19306076]
[1729759324812,3.93732,2539.8,2539.6,0.19306076]
[1729759324973,5.23650952,2539.8,2539.6,0.19306076]
[1729759326391,1.29918952,2539.7,2539.6,0.19306076]
[1729759326590,5.23650952,2539.8,2539.6,0.19306076]
[1729759327109,3.93747,2539.7,2539.6,0.19306076]
[1729759327313,3.93747,2539.7,2539.6,0.43935343]
[1729759327698,3.93747,2539.7,2539.6,0.19306076]
[1729759328018,6.06855952,2539.7,2539.6,0.19306076]
[1729759329297,4.68862,2539.6,2539.5,1.5138026]
[1729759329919,5.98780952,2539.6,2539.5,1.5138026]
[1729759330290,3.9384,2539.1,2539.0,0.24634337]
[1729759330435,3.9384,2539.1,2538.7,0.23117081]
[1729759330436,4.68986,2538.8,2538.7,0.1243829]
[1729759330596,7.68986,2538.8,2538.7,0.1243829]
[1729759330996,8.05609081,2538.8,2538.7,0.1243829]
[1729759331240,7.69986,2538.8,2538.7,2.9e-06]
[1729759331412,7.68986,2538.8,2538.7,2.9e-06]
[1729759331598,8.98904952,2538.8,2538.7,2.9e-06]
[1729759331800,9.36482229,2538.8,2538.7,2.9e-06]
[1729759332316,13.51892424,2538.8,2538.7,2.9e-06]
[1729759332641,0.751,2537.9,2537.8,0.0008]
[1729759332849,3.93989,2538.2,2537.8,0.0008]
[1729759333030,8.63077,2538.2,2537.8,0.18169385]
[1729759333201,4.69088,2538.2,2537.8,0.0008]
[1729759333401,4.69088,2538.2,2537.9,0.18107772]
[1729759333911,0.751,2538.2,2537.9,0.18107772]
[1729759335276,2.90953212,2538.3,2537.9,0.18107772]
[1729759335984,6.84926212,2538.3,2537.9,0.18107772]
[1729759336339,3.93981,2538.2,2537.9,0.18107772]
[1729759336539,6.84922212,2538.3,2537.9,0.18107772]
[1729759336975,2.90953212,2538.3,2537.9,0.18107772]
[1729759337689,3.93927,2538.6,2538.1,0.8038]
[1729759337888,3.93943,2538.5,2538.0,0.18101065]
[1729759338099,3.93943,2538.5,2537.9,3.94025]
[1729759338439,3.93943,2538.5,2538.0,0.18101065]
[1729759339137,7.68996,2538.8,2538.0,0.18101065]
[1729759339138,7.68995,2538.8,2538.0,0.18101065]
[1729759339334,0.751,2538.8,2538.1,0.8038]
[1729759339570,0.751,2538.8,2538.2,3.93979]
[1729759339774,4.68996,2538.8,2538.2,3.93979]
[1729759339975,8.62893,2538.8,2538.3,0.1818882]
[1729759340548,4.68996,2538.8,2538.3,0.1818882]
[1729759340876,0.751,2538.8,2538.3,4.1214482]
[1729759341284,3.93904,2538.7,2538.3,0.1818882]
[1729759343615,6.84857212,2538.7,2538.3,0.1818882]
[1729759346084,2.90953212,2538.7,2538.3,0.1818882]
[1729759346693,6.84860212,2538.7,2538.3,0.1818882]
[1729759348886,3.93925,2538.6,2538.3,0.1818882]
[1729759349210,3.93925,2538.6,2538.1,3.93992]
[1729759349415,3.93925,2538.6,2538.4,0.17541552]
[1729759349581,3.93941,2538.5,2538.0,3.94001]
[1729759349923,2.90953212,2538.7,2537.9,0.8038]
[1729759349924,0.751,2538.4,2537.9,0.8038]
[1729759350127,7.60010212,2538.4,2537.8,3.94112]
[1729759350422,3.93987,2538.2,2537.8,0.0008]
[1729759351186,3.94019,2538.0,2537.8,0.0008]
[1729759351386,0.751,2537.9,2537.8,0.0008]
[1729759351831,10.60079212,2537.9,2537.8,0.0008]
[1729759352906,7.60079212,2537.9,2537.8,0.0008]
[1729759353733,3.66053212,2537.9,2537.8,0.0008]
[1729759353885,6.84956212,2538.1,2537.8,0.17106374]
[1729759354086,2.90953212,2538.1,2537.8,0.17106374]
[1729759354332,13.0809,2538.2,2537.8,0.17106374]
[1729759354502,13.0809,2538.2,2537.8,0.0008]
[1729759354992,13.08089,2538.2,2537.9,0.17019667]
[1729759355331,17.02078,2538.2,2537.9,0.17019667]
[1729759355838,3.93957,2538.4,2537.9,0.17019667]
[1729759356347,3.93957,2538.4,2537.9,4.11042667]
[1729759356886,3.93957,2538.4,2537.9,4.11037667]
[1729759357510,3.93957,2538.4,2537.9,0.17019667]
[1729759357874,3.93965,2538.3,2537.9,0.17019667]
[1729759358323,3.93957,2538.4,2537.9,0.17019667]
[1729759358514,3.9398,2538.2,2537.9,0.17019667]
[1729759359817,3.93957,2538.4,2537.9,0.17019667]
[1729759360219,3.93957,2538.4,2537.9,4.11043667]
[1729759360498,3.93957,2538.4,2538.0,0.24644949]
[1729759360794,3.93957,2538.4,2538.1,0.24644949]
[1729759360980,7.87915,2538.4,2538.0,0.1705297]
[1729759361180,7.87915,2538.4,2538.2,0.17039558]
[1729759361383,7.87915,2538.4,2538.1,0.17046263]
[1729759361691,3.93957,2538.4,2538.2,0.17039558]
[1729759361906,7.87916,2538.4,2537.9,3.94024]
[1729759362109,3.93957,2538.4,2538.3,0.17032852]
[1729759362264,3.93957,2538.4,2537.9,3.94024]
[1729759362466,3.93957,2538.4,2538.0,0.41697802]
[1729759362791,3.751,2538.5,2538.1,4.18639832]
[1729759362999,0.8171,2538.7,2538.2,0.8191]
[1729759363165,3.93872,2538.9,2538.4,3.93945]
[1729759363360,7.66534212,2539.0,2538.3,4.10979846]
[1729759363361,6.84840212,2538.8,2538.3,4.10979846]
[1729759363613,10.78740212,2538.8,2538.5,0.17009437]
[1729759363910,3.93904,2538.7,2538.6,0.16985225]
[1729759364060,3.93904,2538.7,2538.2,0.8191]
[1729759364266,3.93904,2538.7,2538.3,0.41646509]
[1729759364564,6.84882212,2538.6,2538.3,0.17005337]
[1729759364902,2.90953212,2538.6,2538.4,0.16998633]
[1729759365105,3.93933,2538.5,2538.0,4.86590624]
[1729759365305,4.75643,2538.5,2538.1,0.2464244]
[1729759365518,3.93962,2538.4,2538.2,0.2464244]
[1729759365722,3.93964,2538.3,2538.0,0.8191]
[1729759365923,3.93979,2538.2,2538.1,0.24642881]
[1729759366086,4.75689,2538.2,2537.8,0.0016]
[1729759366291,3.94016,2538.0,2537.8,0.0016]
[1729759366481,3.93995,2538.1,2537.8,0.0016]
[1729759366821,3.93995,2538.1,2537.9,0.24646394]
[1729759366992,3.93995,2538.1,2537.8,0.0016]
[1729759367195,3.93995,2538.1,2537.9,0.24646871]
[1729759367420,3.93995,2538.1,2537.8,0.0016]
[1729759367626,4.75689,2538.2,2537.9,0.24646295]
[1729759367811,8.69679,2538.2,2537.8,0.0016]
[1729759368033,3.94004,2538.1,2537.9,0.24646132]
[1729759368233,3.94011,2538.0,2537.8,0.0016]
[1729759368423,3.93997,2538.1,2537.8,0.0016]
[1729759368754,3.93997,2538.1,2537.9,0.17030288]
[1729759369308,3.94026,2537.9,2537.8,0.0016]
[1729759369506,3.94026,2537.9,2537.8,0.24807462]
[1729759369906,3.94026,2537.9,2537.8,0.0016]
[1729759370109,3.94026,2537.9,2537.8,0.24807475]
[1729759371221,3.94026,2537.9,2537.8,0.0016]
[1729759371425,4.75736,2537.9,2537.8,0.0016]
[1729759373568,0.8171,2537.9,2537.8,0.0016]
[1729759373745,4.75736,2537.9,2537.8,0.0016]
[1729759376943,4.75736,2537.9,2537.8,0.17196996]
[1729759379078,4.75736,2537.9,2537.8,0.0016]
[1729759379658,0.8171,2537.9,2537.8,0.17263287]
[1729759379843,3.0,2538.0,2537.8,0.0016]
[1729759380043,6.94013,2538.0,2537.8,0.17263287]
[1729759380243,3.9398,2538.2,2537.8,0.0016]
[1729759380580,6.84964212,2538.0,2537.9,0.1709658]
[1729759380888,6.84964212,2538.0,2537.8,0.0016]
[1729759380889,3.94026,2537.9,2537.8,0.0016]
[1729759381369,3.94026,2537.9,2537.8,0.17263287]
[1729759381577,3.94026,2537.9,2537.8,0.0016]
[1729759381762,3.94026,2537.9,2537.8,0.17263287]
[1729759382291,3.94011,2538.0,2537.8,0.17263287]
[1729759383540,0.7964,2538.2,2537.8,0.17263287]
[1729759383744,3.9402,2538.0,2537.8,0.17263287]
[1729759384056,7.8804,2538.0,2537.8,0.17263287]
[1729759384254,3.9402,2538.0,2537.8,0.17263287]
[1729759384466,3.94026,2537.9,2537.8,0.17263287]
[1729759386265,3.9402,2538.0,2537.8,0.17263287]
[1729759386597,3.93989,2538.2,2537.8,0.17263287]
[1729759387466,3.94003,2538.1,2537.8,0.17263287]
[1729759387979,3.94012,2538.0,2537.8,0.17263287]
[1729759392365,4.71555,2538.4,2537.8,0.17263287]
[1729759392566,3.9391,2538.7,2538.0,4.7507]
[1729759392800,4.30656399,2538.6,2538.0,8.69078]
[1729759393000,3.9393,2538.6,2538.1,0.17073783]
[1729759393503,3.93882,2538.9,2538.3,4.75026]
[1729759393717,4.30622112,2538.8,2538.3,0.8107]
[1729759394009,3.93904,2538.7,2538.4,0.17053668]
[1729759395700,7.87817,2538.7,2538.4,0.17053668]
[1729759396008,7.87815,2538.7,2538.4,0.17053668]
[1729759396210,7.87815,2538.7,2538.2,3.9397]
[1729759396211,3.93933,2538.5,2538.2,0.8107]
[1729759398613,3.93933,2538.5,2538.3,0.17060372]
[1729759402217,3.93917,2538.6,2538.3,0.17060372]
[1729759402417,6.84857212,2538.7,2538.3,0.17060372]
[1729759404716,3.93918,2538.6,2538.3,0.17060372]
[1729759406916,3.93948,2538.4,2538.3,0.17060372]
[1729759407993,7.62501212,2538.4,2538.3,0.17060372]
[1729759408207,7.62501212,2538.4,2537.9,0.8107]
[1729759408394,3.93983,2538.2,2537.9,0.8107]
[1729759409407,7.62511212,2538.4,2537.9,0.8107]
[1729759409408,3.93972,2538.3,2537.9,0.8107]
[1729759411218,7.62511212,2538.4,2537.9,0.8107]
[1729759411544,6.84911212,2538.4,2537.9,4.75088]
[1729759411939,3.93927,2538.6,2538.0,3.93996]
[1729759412102,3.93927,2538.6,2538.1,0.8107]
[1729759412304,3.93896,2538.8,2538.2,3.93972]
[1729759412504,3.93896,2538.8,2538.2,7.87944]
[1729759412505,3.9391,2538.7,2538.2,7.87944]
[1729759412741,6.84829212,2538.9,2538.4,3.93946]
[1729759413736,3.93888,2538.8,2538.5,0.1700506]
[1729759413935,7.87787,2538.8,2538.5,0.1700506]
[1729759414109,7.87784,2538.8,2538.5,0.1700506]
[1729759414311,3.93888,2538.8,2538.5,0.1700506]
[1729759414538,3.93903,2538.7,2538.3,0.8107]
[1729759414718,3.93903,2538.7,2538.6,0.16998356]
[1729759414917,3.93919,2538.6,2538.3,0.8107]
[1729759415247,7.87847,2538.6,2538.4,0.17006763]
[1729759415610,3.93919,2538.6,2538.4,0.17006763]
[1729759415832,6.84872212,2538.6,2538.4,0.17006763]
[1729759416544,6.84872212,2538.6,2538.1,4.99708137]